{"text_format":"1","workbook":"xlsx","n_sheets":5,"sheets":["INCLUSÃO DE DADOS","Glossário","Resumo","Critérios","Sub-critérios"],"not_rendered":{"charts":0,"images":1,"macros":1,"external_links":1,"defined_names":15,"comments":0,"pivot_tables":0},"unopened":[],"bounds":{"document_bytes":16777216,"sheet_cells":100000,"rows_first":2000,"rows_last":500,"rows_between":2000,"halvings":0,"cell_chars":16384,"cell_head_chars":4096},"cells_cut":0,"cells_raw":0,"read":"whole","date_system":"1900"}

{"sheet":"INCLUSÃO DE DADOS","index":0,"n_rows":10,"n_cols":7,"rows_kept":10,"cut":false,"hidden":false,"merged":[]}
[]
[null,"TABELA ISIN PARA MANUTENÇÃO DE FUNDOS"]
[]
[null,"Orientações para preenchimento"]
[null,"*Campo obrigatório"]
[null,"Para criar mais linhas, basta clicar na tecla \"Adicionar linha\"  ao lado"]
[null,"Para consultar os critérios obrigatórios para cada 'Tipo de Fundo', consulte o Glossário"]
[]
[null,"CÓDIGO ISIN","CNPJ da Classe*","Cód CVM Subclasse (se houver)","Nível de\nSubordinação da Classe ou Desc Subclasse (se houver)","Série (se houver)","Complemento"]
[null,null,null,null,null,null,{"$f":"IF(C10<>\"\",C10,\"\")&IF(D10<>\"\",\" | Cód CVM \"&D10,\"\")&IF(E10<>\"\",\" | Classe \"&E10,\"\")&IF(F10<>\"\",\" | Série \"&F10,\"\")","v":""}]

{"sheet":"Glossário","index":1,"n_rows":75,"n_cols":8,"rows_kept":75,"cut":false,"hidden":false,"merged":[[57,4,58,4],[1,7,2,7],[12,5,13,5],[22,3,23,3],[12,3,13,3],[12,4,13,4],[22,4,23,4],[46,7,47,7],[39,6,40,6],[39,5,40,5],[33,5,34,5],[33,6,34,6],[39,7,40,7],[57,5,58,5],[57,3,58,3],[39,3,40,3],[46,3,47,3],[1,6,2,6],[1,5,2,5],[46,5,47,5],[46,6,47,6],[33,3,34,3],[22,6,23,6],[1,4,2,4],[22,5,23,5],[1,3,2,3],[3,3,4,3],[33,4,34,4],[39,4,40,4],[46,4,47,4]]}
[]
[null,null,null,"Tipo de Fundo","Tipo de Condomínio","Política de Distribuição do Fundo","Política de Investimento","Tipo de Investidor"]
[]
[null,null,null,"Fundo de Invest / Fundo Mútuo","O - Aberto","I - Fundo de Renda","R - Imobiliário","U - Sem restrição"]
[null,null,null,null,"C - Fechado","G - Fundo de Crecimento","B - Renda Fixa","Y - Qualificado, Institucional, Profissional"]
[null,null,null,null,null,"J - Fundo Misto","E - Ações"]
[null,null,null,null,null,null,"V - Ativos Conversíveis"]
[null,null,null,null,null,null,"L - Diferentes Ativos"]
[null,null,null,null,null,null,"C - Commodities"]
[null,null,null,null,null,null,"D - Derivativos"]
[null,null,null,null,null,null,"F - Instrumentos de Referência"]
[null,null,null,null,null,null,"M - Outros"]
[null,null,null,"Fundo de Hedge","Tipo de Condomínio","Estratégia de Investimento"]
[]
[null,null,null,null,"X-Não aplicável","D - Direcionado nos preços de mercado"]
[null,null,null,null,null,"R - Valor Relativo"]
[null,null,null,null,null,"S - Seleção de Ativos"]
[null,null,null,null,null,"E - Evento Direcionador"]
[null,null,null,null,null,"A - Arbritagem"]
[null,null,null,null,null,"N - Multi-estratégias"]
[null,null,null,null,null,"L - Empréstimos baseados em ativos"]
[null,null,null,null,null,"M - Outros"]
[null,null,null,"ETF","Tipo de Condomínio","Política de Distribuição do Fundo","Política de Investimento"]
[]
[null,null,null,null,"O - Aberto","I - Fundo de Renda","R - Imobiliário"]
[null,null,null,null,"C - Fechado","G - Fundo de Crecimento","B - Renda Fixa"]
[null,null,null,null,null,"J - Fundo Misto","E - Ações"]
[null,null,null,null,null,null,"V - Ativos Conversíveis"]
[null,null,null,null,null,null,"L - Diferentes Ativos"]
[null,null,null,null,null,null,"C - Commodities"]
[null,null,null,null,null,null,"D - Derivativos"]
[null,null,null,null,null,null,"F - Instrumentos de Referência"]
[null,null,null,null,null,null,"M - Outros"]
[null,null,null,"Fundo de Pensão","Tipo de Condomínio","Estilo","Tipo"]
[]
[null,null,null,null,"O - Aberto","B - Conservador","R - Benefício Definido"]
[null,null,null,null,"C - Fechado","G - Crescimento","B - Contribuição Definida"]
[null,null,null,null,null,"L - Estilo de Vida (depende da idade dos membros)","M - Outros"]
[null,null,null,null,null,"M - Outros"]
[null,null,null,"Fundo de Fundos","Tipo de Condomínio","Política de Distribuição do Fundo","Tipo de Fundo Investido","Tipo de Investidor"]
[]
[null,null,null,null,"O - Aberto","I - Fundo de Renda","I - Fundo de Invest / Fundo Mútuo","U - Sem restrição"]
[null,null,null,null,"C - Fechado","G - Fundo de Crecimento","H - Fundo de Hedge","Y - Qualificado, Institucional, Profissional"]
[null,null,null,null,null,"J - Fundo Misto","E - ETF"]
[null,null,null,null,null,null,"P - Fundo de Private Equity"]
[null,null,null,null,null,null,"M - Outros"]
[null,null,null,"Fundo de Private Equity","Tipo de Condomínio","Política de Distribuição do Fundo","Política de Investimento","Tipo de Investidor"]
[null,null,null,"Outros"]
[null,null,null,null,"O - Aberto","I - Fundo de Renda","R - Imobiliário","U - Sem restrição"]
[null,null,null,null,"C - Fechado","G - Fundo de Crecimento","B - Renda Fixa","Y - Qualificado, Institucional, Profissional"]
[null,null,null,null,null,"J - Fundo Misto","E - Ações"]
[null,null,null,null,null,null,"V - Ativos Conversíveis"]
[null,null,null,null,null,null,"L - Diferentes Ativos"]
[null,null,null,null,null,null,"C - Commodities"]
[null,null,null,null,null,null,"D - Derivativos"]
[null,null,null,null,null,null,"F - Instrumentos de Referência"]
[null,null,null,null,null,null,"M - Outros"]
[null,null,null,"Outros","Tipo de Condomínio","Tipo de Investidor"]
[]
[null,null,null,null,"O - Aberto","U - Sem restrição"]
[null,null,null,null,"C - Fechado","Y - Qualificado, Institucional, Profissional"]
[]
[]
[]
[]
[]
[]
[null,null,"Tipo de Fundo"]
[null,null,"I - Fundo de Invest / Fundo Mútuo"]
[null,null,"H - Fundo de Hedge"]
[null,null,"E - ETF"]
[null,null,"S - Fundo de Pensão"]
[null,null,"F - Fundo de Fundos"]
[null,null,"P - Fundo de Private Equity"]
[null,null,"M - Outros"]

{"sheet":"Resumo","index":2,"n_rows":27,"n_cols":16,"rows_kept":27,"cut":false,"hidden":false,"merged":[[10,1,10,7]]}
[]
[null,"Tipo de fundo"]
[null,"I - Fundo de Invest / Fundo Mútuo"]
[null,"H - Fundo de Hedge"]
[null,"E - ETF"]
[null,"S - Fundo de Pensão"]
[null,"F - Fundo de Fundos"]
[null,"P - Fundo de Private Equity"]
[null,"M - Outros"]
[]
[null,"Critérios"]
[null,{"$f":"B3","v":"I - Fundo de Invest / Fundo Mútuo"},{"$f":"B4","v":"H - Fundo de Hedge"},{"$f":"B5","v":"E - ETF"},{"$f":"B6","v":"S - Fundo de Pensão"},{"$f":"B7","v":"F - Fundo de Fundos"},{"$f":"B8","v":"P - Fundo de Private Equity"},{"$f":"B9","v":"M - Outros"}]
[null,"Política de Distribuição do Fundo","Estratégia de Investimento","Política de Distribuição do Fundo","Estilo","Política de Distribuição do Fundo","Política de Distribuição do Fundo","Tipo de Investidor"]
[null,"Política de Investimento",null,"Política de Investimento","Tipo","Tipo de Fundo Investido","Política de Investimento"]
[null,"Tipo de Investidor",null,null,null,"Tipo de Investidor","Tipo de Investidor"]
[]
[null,{"$f":"B12","v":"I - Fundo de Invest / Fundo Mútuo"},null,null,{"$f":"C12","v":"H - Fundo de Hedge"},{"$f":"D12","v":"E - ETF"},null,{"$f":"E12","v":"S - Fundo de Pensão"},null,{"$f":"F12","v":"F - Fundo de Fundos"},null,null,{"$f":"G12","v":"P - Fundo de Private Equity"},null,null,{"$f":"H12","v":"M - Outros"}]
[null,{"$f":"B13","v":"Política de Distribuição do Fundo"},{"$f":"B14","v":"Política de Investimento"},{"$f":"B15","v":"Tipo de Investidor"},{"$f":"C13","v":"Estratégia de Investimento"},{"$f":"D13","v":"Política de Distribuição do Fundo"},{"$f":"D14","v":"Política de Investimento"},{"$f":"E13","v":"Estilo"},{"$f":"E14","v":"Tipo"},{"$f":"F13","v":"Política de Distribuição do Fundo"},{"$f":"F14","v":"Tipo de Fundo Investido"},{"$f":"F15","v":"Tipo de Investidor"},{"$f":"G13","v":"Política de Distribuição do Fundo"},{"$f":"G14","v":"Política de Investimento"},{"$f":"G15","v":"Tipo de Investidor"},{"$f":"H13","v":"Tipo de Investidor"}]
[null,"I - Fundo de Renda","R - Imobiliário","U - Sem restrição","D - Direcionado nos preços de mercado","I - Fundo de Renda","R - Imobiliário","B - Conservador","R - Benefício Definido","I - Fundo de Renda","I - Fundo de Invest / Fundo Mútuo","U - Sem restrição","I - Fundo de Renda","R - Imobiliário","U - Sem restrição","U - Sem restrição"]
[null,"G - Fundo de Crecimento","B - Renda Fixa","Y - Qualificado, Institucional, Profissional","R - Valor Relativo","G - Fundo de Crecimento","B - Renda Fixa","G - Crescimento","B - Contribuição Definida","G - Fundo de Crecimento","H - Fundo de Hedge","Y - Qualificado, Institucional, Profissional","G - Fundo de Crecimento","B - Renda Fixa","Y - Qualificado, Institucional, Profissional","Y - Qualificado, Institucional, Profissional"]
[null,"J - Fundo Misto","E - Ações",null,"S - Seleção de Ativos","J - Fundo Misto","E - Ações","L - Estilo de Vida (depende da idade dos membros)","M - Outros","J - Fundo Misto","E - ETF",null,"J - Fundo Misto","E - Ações"]
[null,null,"V - Ativos Conversíveis",null,"E - Evento Direcionador",null,"V - Ativos Conversíveis","M - Outros",null,null,"P - Fundo de Private Equity",null,null,"V - Ativos Conversíveis"]
[null,null,"L - Diferentes Ativos",null,"A - Arbritagem",null,"L - Diferentes Ativos",null,null,null,"M - Outros",null,null,"L - Diferentes Ativos"]
[null,null,"C - Commodities",null,"N - Multi-estratégias",null,"C - Commodities",null,null,null,null,null,null,"C - Commodities"]
[null,null,"D - Derivativos",null,"L - Empréstimos baseados em ativos",null,"D - Derivativos",null,null,null,null,null,null,"D - Derivativos"]
[null,null,"F - Instrumentos de Referência",null,"M - Outros",null,"F - Instrumentos de Referência",null,null,null,null,null,null,"F - Instrumentos de Referência"]
[null,null,"M - Outros",null,null,null,"M - Outros",null,null,null,null,null,null,"M - Outros"]

{"sheet":"Critérios","index":3,"n_rows":4,"n_cols":7,"rows_kept":4,"cut":false,"hidden":true,"merged":[]}
["I - Fundo de Invest / Fundo Mútuo","H - Fundo de Hedge","E - ETF","S - Fundo de Pensão","F - Fundo de Fundos","P - Fundo de Private Equity","M - Outros"]
["Política de Distribuição do Fundo","Estratégia de Investimento","Política de Distribuição do Fundo","Estilo","Política de Distribuição do Fundo","Política de Distribuição do Fundo","Tipo de Investidor"]
["Política de Investimento",null,"Política de Investimento","Tipo","Tipo de Fundo Investido","Política de Investimento"]
["Tipo de Investidor",null,null,null,"Tipo de Investidor","Tipo de Investidor"]

{"sheet":"Sub-critérios","index":4,"n_rows":10,"n_cols":7,"rows_kept":10,"cut":false,"hidden":true,"merged":[]}
["Política de Investimento","Estratégia de Investimento","Tipo de Fundo Investido","Estilo","Tipo","Política de Distribuição do Fundo","Tipo de Investidor"]
["R - Imobiliário","D - Direcionado nos preços de mercado","I - Fundo de Invest / Fundo Mútuo","B - Conservador","R - Benefício Definido","I - Fundo de Renda","U - Sem restrição"]
["B - Renda Fixa","R - Valor Relativo","H - Fundo de Hedge","G - Crescimento","B - Contribuição Definida","G - Fundo de Crecimento","Y - Qualificado, Institucional, Profissional"]
["E - Ações","S - Seleção de Ativos","E - ETF","L - Estilo de Vida (depende da idade dos membros)","M - Outros","J - Fundo Misto"]
["V - Ativos Conversíveis","E - Evento Direcionador","P - Fundo de Private Equity","M - Outros"]
["L - Diferentes Ativos","A - Arbritagem","M - Outros"]
["C - Commodities","N - Multi-estratégias"]
["D - Derivativos","L - Empréstimos baseados em ativos"]
["F - Instrumentos de Referência","M - Outros"]
["M - Outros"]